[Event "III Menorca Open-A 2024"]
[Site "Ciutadella Menorca"]
[Date "2024.04.03"]
[Round "2.3"]
[White "Fedoseev, Vladimir"]
[Black "Malek, Jan"]
[Result "0-1"]
[ECO "D23"]
[WhiteElo "2690"]
[BlackElo "2441"]
[Annotator "TA"]
[PlyCount "122"]
[EventDate "2024.04.02"]
[EventType "swiss"]
[EventCountry "ESP"]
[SourceTitle "playchess.com"]
[Source "ChessBase"]
[SourceQuality "1"]
[TimeControl "5400+30"]

{[%evp 11,122,15,26,-10,0,-16,-20,-39,-6,-9,0,-26,-14,-27,-9,-18,-16,-18,-20,-26,0,-26,-43,-73,-33,-18,-22,-12,0,0,0,0,0,0,38,25,30,39,15,31,50,0,0,0,0,0,0,-15,-22,-27,0,0,0,-13,-12,-251,-248,-251,-238,-262,-227,-235,-259,-377,-271,-280,-279,-280,-276,-338,-334,-334,-346,-463,-483,-488,-484,-477,-479,-476,-500,-544,-561,-531,-475,-401,0,-577,-571,-577,-520,-584,-477,-577,-577,-577,-577,-593,-588,-585,-570,-704,-556,-519,0,-720,-712,-815,-715,-5102,-5102,-29988,-29989]} 1. d4 {[%emt 0:01:37]} Nf6 {[%emt 1:31:00]} 2. c4 {[%emt 0:00:07]} e6 {[%emt 0:00:00]} 3. Nf3 {[%emt 0:00:09]} d5 {[%emt 0:00:00]} 4. Nc3 {[%emt 0:00:19]} dxc4 {[%emt 0:00:00]} 5. Qa4+ {[%emt 0:00:27]} Nbd7 {[%emt 0:00:00]} 6. e4 {[%emt 0:00:08]} c5 {[%emt 0:00:00]} 7. Bf4 {[%emt 0:10:08]} a6 {[%emt 0:00:00]} 8. d5 {[%emt 0:04:25]} exd5 {[%emt 0:00:00]} 9. exd5 {[%emt 0:05:31][%cal Oe1c1] The position is equal.} Qb6 {[%emt 0:00:00]} 10. O-O-O {[%emt 0:01:29]} Bd6 {[%emt 0:00:00]} 11. Re1+ {[%emt 0:00:20]} Kf8 {[%emt 0:00:00]} 12. Qxc4 {[%emt 0:10:02]} Qc7 {[%emt 0:00:00]} 13. Bxd6+ {[%emt 0:01:55]} Qxd6 {[%emt 0:00:00]} 14. Qh4 {[%emt 0:00:22]} b5 {[%emt 0:00:00][%cal Od7b6]} 15. a4 {[%emt 0:00:52]} Nb6 {[%emt 0:00:00]} 16. Bd3 {[%emt 0:09:30]} Bb7 {[%emt 0:00:00]} (16... Nfxd5 $6 17. Be4 Bb7 (17... bxa4 $2 18. Nxd5 a3 19. Ne3 $18) 18. Rd1 bxa4 19. Nxd5 Bxd5 20. Rxd5 Nxd5 21. Rd1 $16 (21. Bxh7 $2 a3 $19)) 17. axb5 {[%emt 0:07:34]} axb5 {[%emt 0:00:00]} (17... Nfxd5 18. bxa6 Bxa6 19. Bxa6 Rxa6 20. Nb5 Qh6+ 21. Qxh6 gxh6 22. Nd6 $11) (17... Nbxd5 {simplifies} 18. Qg3 Qxg3 19. fxg3 Nxc3 20. bxc3 axb5 21. Bxb5 g6) 18. Nxb5 {[%emt 0:05:42]} Qxd5 {[%emt 0:00:00]} 19. Ne5 {[%emt 0:02:48]} Ra1+ {[%emt 0:00:00]} (19... Qxg2 $2 20. Rhg1 Ra4 21. Qxa4 $18) 20. Bb1 $1 {[%emt 0:04:27]} Bc8 {[%emt 0:00:00]} (20... Qxg2 $2 21. Rhg1 Rxb1+ 22. Kxb1 $18) 21. Nc3 {[%emt 0:07:26]} Qd4 {[%emt 0:00:00]} 22. Qg3 {[%emt 0:01:06] Strongly threatening Rd1.} Bf5 {[%emt 0:00:00] ...Na4 is the strong threat.} 23. Nc6 $1 {[%emt 0:05:56]} Qd7 {[%emt 0:00:00]} 24. Qb8+ {[%emt 0:02:48]} Nc8 {[%emt 0:00:00]} 25. Ne5 {[%emt 0:03:05] Dodges Qd3} Qd4 {[%emt 0:00:00][%cal Og7g6]} 26. Qc7 {[%emt 0:01:48]} ({White should try} 26. Re3 $1 $14 g6 27. Rd1) 26... Ra7 $1 $40 {[%emt 0:02:58][%mdl 128] Black attacks.} 27. Qc6 {[%emt 0:00:06]} Ne7 {[%emt 0:00:23]} 28. Qb6 {[%emt 0:01:40]} Nc8 {[%emt 0:00:07] Really sharp!} 29. Qb5 {[%emt 0:00:51] Hoping for Re3.} Ra1 {[%emt 0:02:27][%cal Og7g6] And now ...g6! would win.} 30. Nf3 $1 {[%emt 0:00:27]} Qb4 {[%emt 0:01:54]} (30... Qxf2 $2 {loses.} 31. Re2 Bd7 (31... Bxb1 $2 32. Nxb1 $18) 32. Qc4 $18 (32. Rxf2 Bxb5 33. Nxb5 Ne7 $18)) 31. Qc6 {[%emt 0:01:16]} Qc4 {[%emt 0:01:57]} 32. Kd2 {[%emt 0:03:20]} Ra6 {[%emt 0:00:06]} 33. Qc7 {[%emt 0:00:07] White is on the road to losing.} (33. Qb5 $1 $11 {and White is okay.} Qxb5 34. Nxb5 Bxb1 35. Rxb1) 33... Rd6+ $19 {[%emt 0:00:24]} 34. Kc1 {[%emt 0:00:12] [#]} Qf4+ {[%emt 0:00:16]} 35. Re3 {[%emt 0:00:01] [#]} Rd1+ $3 {[%emt 0:02:08][%mdl 512]} 36. Rxd1 {[%emt 0:00:06]} Qxc7 {[%emt 0:00:03]} 37. Nb5 {[%emt 0:00:50]} (37. Bxf5 $142 g6 38. Ne4 Nxe4 39. Rd7) 37... Qb6 {[%emt 0:00:29]} 38. Bxf5 {[%emt 0:00:05]} g6 {[%emt 0:00:27]} 39. Bd3 {[%emt 0:00:27]} Kg7 {[%emt 0:01:25]} 40. Bc4 {[%emt 0:01:12]} Qb8 {[%emt 0:00:02]} ({Much less strong is} 40... Rd8 41. b3) 41. Ne5 {[%emt 0:00:33]} Re8 {[%emt 0:00:14]} 42. Rde1 {[%emt 0:02:36]} Nb6 {[%emt 0:02:20]} ({Don't play} 42... Re7 43. Na3 $19) 43. Bxf7 {[%emt 0:01:57] [#]} Rxe5 {[%emt 0:00:01][%mdl 512]} 44. Rxe5 {[%emt 0:00:01]} Kxf7 {[%emt 0:00:01]} 45. Nc3 {[%emt 0:02:08]} Nc4 {[%emt 0:00:27][%csl LRb2,LRe5]} 46. R5e2 {[%emt 0:00:01]} Qb3 {[%emt 0:00:58][%cal Oc4b2] aiming for ...Nxb2!} 47. Kb1 {[%emt 0:01:44]} Na3+ {[%emt 0:00:00]} 48. Kc1 {[%emt 0:00:10]} Nc4 {[%emt 0:00:01]} (48... Qc4 $142 49. Re7+ Kf8) 49. Kb1 $1 {[%emt 0:00:08]} g5 {[%emt 0:00:24]} 50. Rc1 {[%emt 0:00:46]} h6 {[%emt 0:00:21]} 51. g3 {[%emt 0:00:30]} g4 {[%emt 0:00:28]} 52. Ka1 {[%emt 0:00:11]} Qb6 {[%emt 0:00:46]} 53. Rd1 {[%emt 0:00:20]} Na5 {[%emt 0:00:35]} 54. Kb1 {[%emt 0:00:27]} Nb3 {[%emt 0:00:04]} 55. Re3 {[%emt 0:01:22]} Qa6 {[%emt 0:00:14]} 56. Na2 {[%emt 0:00:17]} Nd4 {[%emt 0:00:54]} 57. Nc3 {[%emt 0:00:30]} Nb3 {[%emt 0:00:33]} 58. Na2 $1 {[%emt 0:00:50]} Qa4 {[%emt 0:00:11]} 59. Rdd3 {[%emt 0:01:21] [#]} Ne4 $1 {[%emt 0:00:41]} 60. Re2 {[%emt 0:01:24] Repels Nbd2+} (60. Nc3 Nxc3+) 60... Qc4 {[%emt 0:01:29]} 61. Rd7+ {[%emt 0:00:07]} Ke6 {[%emt 0:00:13] Weighted Error Value: White=0.37/Black=0.37.  Loses game:     	White=1     	---        Mistake:       	White=2     	Black=1      Inaccurate:     	White=4     	Black=4      OK:         	White=14    	Black=29     Best:        	White=6     	Black=6      Strong:       	White=5     	Black=1      Brilliant:      	---       	Black=1} 0-1

[Event "III Menorca Open-A 2024"]
[Site "Ciutadella Menorca"]
[Date "2024.04.03"]
[Round "2.4"]
[White "Jacobson, Aaron"]
[Black "Van Foreest, Jorden"]
[Result "0-1"]
[ECO "D61"]
[WhiteElo "2431"]
[BlackElo "2672"]
[Annotator "TA"]
[PlyCount "64"]
[EventDate "2024.04.02"]
[EventType "swiss"]
[EventCountry "ESP"]
[SourceTitle "playchess.com"]
[Source "ChessBase"]
[SourceQuality "1"]
[TimeControl "5400+30"]

{[%evp 16,64,22,17,40,11,6,0,24,23,31,0,0,0,0,0,0,0,0,0,0,0,0,0,0,-6,0,0,0,0,0,0,0,-6,-18,-26,-16,-70,-68,-42,-41,-135,-129,-128,-113,-134,-77,-81,-52,-29995,-29996]} 1. d4 {[%emt 0:04:46]} Nf6 {[%emt 0:00:15]} 2. c4 {[%emt 0:00:08]} e6 {[%emt 0:00:12]} 3. Nf3 {[%emt 0:00:06]} d5 {[%emt 0:00:18]} 4. Nc3 {[%emt 0:00:10]} Nbd7 {[%emt 0:00:55]} 5. Bg5 {[%emt 0:03:07]} h6 {[%emt 0:01:10]} 6. Bh4 {[%emt 0:00:34]} Be7 {[%emt 0:00:29]} 7. e3 {[%emt 0:00:21]} O-O {[%emt 0:00:38]} 8. Qc2 {[%emt 0:01:30]} c6 {[%emt 0:03:36]} 9. a3 {[%emt 0:02:58]} Ne8 {[%emt 0:00:28]} 10. Bxe7 {[%emt 0:03:15]} Qxe7 {[%emt 0:00:07]} 11. Bd3 {[%emt 0:00:45]} Nd6 {[%emt 0:05:53] The position is equal.} 12. c5 {[%emt 0:02:25]} Ne8 {[%emt 0:00:08][%cal Bd6e8,Be8f6,Bf6g4][%mdl 32]} 13. b4 {[%emt 0:00:37]} e5 {[%emt 0:02:22]} 14. Nxe5 {[%emt 0:02:02]} Nxe5 {[%emt 0:00:08]} 15. dxe5 {[%emt 0:00:03]} Qxe5 {[%emt 0:00:10]} 16. O-O {[%emt 0:00:25]} Nf6 {[%emt 0:00:17]} 17. h3 {[%emt 0:07:41] Prevents Ng4.} Re8 {[%emt 0:03:34]} 18. Ne2 {[%emt 0:02:00]} Qg5 {[%emt 0:02:52]} 19. Kh2 {[%emt 0:03:44]} Qh4 {[%emt 0:10:01]} 20. Qc3 {[%emt 0:12:31]} Ng4+ {[%emt 0:05:48]} 21. Kg1 {[%emt 0:00:09]} Ne5 {[%emt 0:00:07][%cal Oc8h3] Strongly threatening ...Bxh3!} 22. Nf4 {[%emt 0:01:44]} Qf6 {[%emt 0:16:23][%cal Oe5f3] Threatens to win with ...Nf3+!} 23. Qd4 {[%emt 0:00:50]} Bf5 {[%emt 0:01:00]} 24. Be2 {[%emt 0:07:27]} Qg5 {[%emt 0:03:17]} (24... Nd7 {simplifies} 25. Qxf6 Nxf6 26. Bf3 a5) 25. Rfd1 {[%emt 0:04:17]} Be4 {[%emt 0:01:53] aiming for ...Nf3+.} 26. g3 {[%emt 0:08:06]} ({White should try} 26. Kh1 $11) 26... Nf3+ {[%emt 0:06:17]} 27. Bxf3 {[%emt 0:00:14]} Bxf3 {[%emt 0:00:04]} 28. Re1 {[%emt 0:00:38]} (28. Rd2 $15) 28... Re4 $17 {[%emt 0:02:27]} 29. Qd2 {[%emt 0:03:28]} Rae8 {[%emt 0:02:18] White is weak on the light squares} 30. Kh2 {[%emt 0:02:14]} R8e5 {[%emt 0:07:54]} (30... h5 $142 31. Rg1 d4) 31. Ne2 {[%emt 0:02:01]} Rh4 {[%emt 0:01:03][%cal Oh4h3] ( -> ...Rxh3+!). Black is more active.} 32. Nf4 {[%emt 0:03:31][%mdl 8192] [#]} (32. gxh4 $2 Qg2#) (32. Ng1 $15 Qg4 (32... Be4 $2 33. f4 $18) 33. Qd4 (33. Nxf3 $2 {gets mated.} Qxh3+ 34. Kg1 Qh1#)) 32... Qxf4 $3 {[%emt 0:01:19][%mdl 512] Weighted Error Value: White=0.30/Black=0.07 (flawless) .  Loses game:     	White=1     	---        Mistake:       	White=2     	Black=1      Inaccurate:     	White=2     	Black=1      OK:         	White=5     	Black=9      Best:        	White=2     	Black=1      Brilliant:      	---       	Black=1} 0-1

[Event "III Menorca Open-A 2024"]
[Site "Ciutadella Menorca"]
[Date "2024.04.03"]
[Round "2.5"]
[White "Aravindh, Chithambaram VR."]
[Black "Shuvalova, Polina"]
[Result "1/2-1/2"]
[ECO "D00"]
[WhiteElo "2662"]
[BlackElo "2439"]
[Annotator "TA"]
[PlyCount "140"]
[EventDate "2024.04.02"]
[EventType "swiss"]
[EventCountry "ESP"]
[SourceTitle "playchess.com"]
[Source "ChessBase"]
[SourceQuality "1"]
[TimeControl "5400+30"]

{[%evp 53,140,27,37,40,102,50,78,63,113,117,121,104,133,131,119,130,127,103,143,104,128,92,104,104,104,114,198,223,214,232,232,232,213,152,151,151,151,150,150,127,127,127,128,127,134,128,217,217,215,151,209,138,202,191,240,240,240,240,287,217,216,174,198,152,193,46,58,8,8,8,8,0,0,0,0,0,0,0,0,0,0,0,0,0,0,0,0,0,0]} 1. d4 {[%emt 0:00:10]} Nf6 {[%emt 0:00:03]} 2. Nc3 {[%emt 0:00:09]} d5 {[%emt 0:00:06]} 3. Bf4 {[%emt 0:00:07]} a6 {[%emt 0:00:34]} 4. e3 {[%emt 0:00:09]} e6 {[%emt 0:02:51]} 5. g4 {[%emt 0:04:41]} Bb4 {[%emt 0:00:23]} 6. Nge2 {[%emt 0:09:36]} Nxg4 {[%emt 0:00:40]} 7. Rg1 {[%emt 0:00:19]} g5 {[%emt 0:00:06]} 8. Rxg4 {[%emt 0:04:51]} gxf4 {[%emt 0:00:05]} 9. Nxf4 {[%emt 0:00:20]} Nc6 {[%emt 0:07:44]} 10. Nh5 {[%emt 0:02:25]} f5 {[%emt 0:10:40]} 11. Rg3 {[%emt 0:17:30]} Qh4 {[%emt 0:01:12]} 12. Rh3 {[%emt 0:05:15]} Qg5 {[%emt 0:02:47]} 13. Rg3 {[%emt 0:05:56]} Qh4 {[%emt 0:00:23]} 14. Rh3 {[%emt 0:00:30]} Qg5 {[%emt 0:00:09]} 15. Qf3 {[%emt 0:00:06]} Bd6 {[%emt 0:02:57]} 16. O-O-O {[%emt 0:01:48]} Bd7 {[%emt 0:00:06]} 17. Ne2 {[%emt 0:00:12]} O-O-O {[%emt 0:00:38]} 18. Nhf4 {[%emt 0:00:19]} Rdg8 {[%emt 0:11:47]} 19. Rg3 {[%emt 0:01:54]} Qe7 {[%emt 0:02:12]} 20. Kb1 {[%emt 0:00:40]} Na5 {[%emt 0:02:45]} 21. Nxd5 {[%emt 0:06:18]} exd5 {[%emt 0:04:33]} 22. Rxg8+ {[%emt 0:00:31]} Rxg8 {[%emt 0:00:03]} 23. Qxd5 {[%emt 0:00:07]} Re8 {[%emt 0:11:15]} 24. Qxa5 {[%emt 0:00:09]} Qh4 {[%emt 0:00:04]} 25. Ng3 {[%emt 0:02:53]} Kb8 {[%emt 0:04:10]} 26. Bd3 {[%emt 0:18:03]} Rf8 {[%emt 0:06:48]} 27. Rg1 {[%emt 0:12:34]} (27. Bxf5 $2 Bxf5 28. Nxf5 Qh5 (28... Qxh2 29. e4 $18) 29. Qe1 $19) (27. Rh1 $16) 27... Qxh2 $11 {[%emt 0:02:49]} 28. Qe1 {[%emt 0:00:05]} Rg8 {[%emt 0:06:04]} (28... f4 $1 $14 29. exf4 Bc6) 29. a3 {[%emt 0:01:40]} (29. Bxf5 $2 {perishes.} Bxf5 30. Qf1 (30. Rh1 $2 Bxg3 31. fxg3 Bxc2+ 32. Kc1 Qg2 $19) 30... h5 $19 (30... Bxg3 $2 31. e4 $19)) ({White should play} 29. Rh1 $1 $16 {[%cal Rh1h2]} Bxg3 30. Rxh2 (30. fxg3 Qxg3 31. Qxg3 Rxg3 $14) 30... Bxh2 31. Bf1) 29... Bxg3 {[%emt 0:03:03]} 30. Rxg3 {[%emt 0:00:20]} Rxg3 {[%emt 0:00:10]} (30... Rg4 $14) 31. fxg3 $16 {[%emt 0:00:04]} Ka7 {[%emt 0:01:42]} 32. d5 {[%emt 0:02:28]} h5 {[%emt 0:01:57]} 33. e4 {[%emt 0:01:15]} fxe4 {[%emt 0:08:08]} 34. Bxe4 {[%emt 0:00:04]} Kb8 {[%emt 0:00:48]} 35. b3 {[%emt 0:01:00]} Bg4 {[%emt 0:00:16]} 36. Qc3 {[%emt 0:00:55]} Qf2 {[%emt 0:00:52]} 37. Kb2 {[%emt 0:00:32]} Qe2 {[%emt 0:04:09]} 38. Qh8+ {[%emt 0:00:20]} Ka7 {[%emt 0:00:04]} 39. Qd4+ {[%emt 0:00:04]} Kb8 {[%emt 0:00:55]} (39... Ka8 $16 40. b4 Qe1) 40. d6 $18 {[%emt 0:01:54]} cxd6 {[%emt 0:00:22]} 41. Qxd6+ {[%emt 0:00:05]} Ka7 {[%emt 0:00:03]} 42. Qc5+ {[%emt 0:00:23]} Kb8 {[%emt 0:00:06]} 43. Qd5 {[%emt 0:00:06]} Bc8 {[%emt 0:02:13]} 44. Qd6+ {[%emt 0:00:46]} Ka7 {[%emt 0:00:10]} 45. Qc5+ {[%emt 0:00:10]} Kb8 {[%emt 0:00:03]} 46. Bd3 {[%emt 0:00:32]} Qe8 {[%emt 0:00:40]} 47. Qd6+ {[%emt 0:01:29]} Ka8 {[%emt 0:00:06]} 48. Qd4 {[%emt 0:01:35]} Bg4 {[%emt 0:00:38]} 49. Be4 {[%emt 0:00:43]} Qb8 {[%emt 0:01:01]} (49... Qe7 $16 50. Ka2 Qc7 51. Qh8+ Ka7) 50. Qg7 $18 {[%emt 0:00:50]} Qc8 {[%emt 0:02:17]} 51. Bd5 {[%emt 0:00:08]} Ka7 {[%emt 0:00:23]} (51... a5 $16 52. Qg8 Qxg8 53. Bxg8 b6) 52. c4 {[%emt 0:00:15]} Bd7 {[%emt 0:00:43] [#]} (52... Be6 $16 53. Bh1 Bd7 54. Qd4+ Kb8 55. Qd6+ Ka7) 53. Qd4+ $1 $18 {[%emt 0:00:20]} Ka8 {[%emt 0:00:29] [#]} (53... Kb8 {might work better.} 54. Qe5+ Ka7) 54. Qb6 $1 $18 {[%emt 0:00:22]} Kb8 {[%emt 0:01:22]} 55. Ka2 {[%emt 0:00:19]} Bg4 {[%emt 0:00:28]} 56. Qd6+ {[%emt 0:00:08]} Ka7 {[%emt 0:00:10]} 57. Qe7 {[%emt 0:00:05]} Bd7 {[%emt 0:00:15]} 58. a4 {[%emt 0:00:23]} ({White should try} 58. b4 $18) 58... a5 $16 {[%emt 0:00:30]} 59. c5 {[%emt 0:01:46]} (59. Be4 $18) 59... Bc6 $1 $14 {[%emt 0:00:27]} 60. Qe5 {[%emt 0:01:11]} (60. Bc4 $14) 60... Bxd5 $11 {[%emt 0:00:23]} 61. Qxd5 {[%emt 0:00:03]} Qg4 {[%emt 0:00:15]} 62. Qd6 {[%emt 0:00:34]} Qe2+ {[%emt 0:00:21]} 63. Ka3 {[%emt 0:00:03]} Qe1 {[%emt 0:00:07]} 64. Kb2 {[%emt 0:00:04]} Qe2+ {[%emt 0:01:05]} 65. Kc3 {[%emt 0:00:05]} Qe1+ {[%emt 0:00:42]} 66. Kb2 {[%emt 0:00:54]} Qe2+ {[%emt 0:00:04]} 67. Ka3 {[%emt 0:00:03]} Qe1 {[%emt 0:00:03]} 68. Qd4 {[%emt 0:01:22]} Qc1+ {[%emt 0:00:26]} 69. Ka2 {[%emt 0:00:05]} Qc2+ {[%emt 0:00:04]} 70. Ka3 {[%emt 0:00:11]} Qc1+ {[%emt 0:00:03]} 1/2-1/2

[Event "III Menorca Open-A 2024"]
[Site "Ciutadella Menorca"]
[Date "2024.04.03"]
[Round "2.6"]
[White "Divya Deshmukh"]
[Black "Alekseenko, Kirill"]
[Result "0-1"]
[ECO "C93"]
[WhiteElo "2427"]
[BlackElo "2650"]
[Annotator "TA"]
[PlyCount "92"]
[EventDate "2024.04.02"]
[EventType "swiss"]
[EventCountry "ESP"]
[SourceTitle "playchess.com"]
[Source "ChessBase"]
[SourceQuality "1"]
[TimeControl "5400+30"]

{[%evp 18,92,41,29,47,41,39,33,20,32,33,37,29,15,34,33,44,43,43,35,35,29,72,27,24,27,33,19,44,40,60,12,0,-27,-18,-34,-9,-45,-31,-33,-27,-129,-136,-106,-50,-135,-133,-142,-137,-137,-135,-174,-162,-169,-150,-188,-177,-187,-187,-173,-173,-173,-155,-175,-164,-213,-198,-211,-197,-313,-288,-478,-456,-729,-731,-954,-943]} 1. e4 {[%emt 0:05:18]} e5 {[%emt 0:00:35]} 2. Nf3 {[%emt 0:00:03]} Nc6 {[%emt 0:00:18]} 3. Bb5 {[%emt 0:00:09]} a6 {[%emt 0:00:43]} 4. Ba4 {[%emt 0:00:04]} Nf6 {[%emt 0:00:33]} 5. O-O {[%emt 0:00:14]} Be7 {[%emt 0:00:31]} 6. Re1 {[%emt 0:00:16]} b5 {[%emt 0:01:05]} 7. Bb3 {[%emt 0:00:03]} d6 {[%emt 0:00:07]} 8. c3 {[%emt 0:00:10]} O-O {[%emt 0:00:59]} 9. h3 {[%emt 0:00:17]} h6 {[%emt 0:00:43]} 10. d4 {[%emt 0:01:57]} Bd7 {[%emt 0:00:05]} 11. Nbd2 {[%emt 0:02:21][%cal Bb1d2,Bd2f1,Bf1g3][%mdl 32]} Re8 {[%emt 0:01:14]} 12. Nf1 {[%emt 0:04:56]} a5 {[%emt 0:00:59][%cal Ba6a5,Ba5a4][%mdl 32] White is slightly better.} 13. Ng3 {[%emt 0:04:22]} a4 {[%emt 0:00:16]} 14. Bc2 {[%emt 0:00:14]} Bf8 {[%emt 0:00:08]} 15. Bd2 {[%emt 0:03:03]} Na7 {[%emt 0:09:47][%cal Bc6a7,Ba7c8,Bc8e7,Be7g6][%mdl 32]} 16. b3 {[%emt 0:03:05]} axb3 {[%emt 0:11:26]} 17. axb3 {[%emt 0:00:51]} Qb8 {[%emt 0:00:31]} 18. Be3 {[%emt 0:09:54]} Nc8 {[%emt 0:14:14]} 19. Qd2 {[%emt 0:09:27]} Qb7 {[%emt 0:09:04]} 20. Kh2 {[%emt 0:14:58]} Rxa1 {[%emt 0:13:08]} 21. Rxa1 {[%emt 0:00:04]} c5 {[%emt 0:00:03]} 22. d5 {[%emt 0:05:53]} Ne7 {[%emt 0:01:39]} 23. b4 {[%emt 0:03:32]} Ng6 {[%emt 0:00:40]} 24. Bd3 {[%emt 0:02:10]} (24. c4 $14 {is more appropriate.}) 24... Ra8 $36 {[%emt 0:00:51][%mdl 2048] Black has the initiative.} 25. Qb2 {[%emt 0:00:34] Rxa8 would now be deadly.} c4 {[%emt 0:01:28] [#] ...Rxa1 is the strong threat.} 26. Bb1 {[%emt 0:02:00]} Ne8 {[%emt 0:10:01]} 27. Ne1 {[%emt 0:02:26]} Rxa1 {[%emt 0:02:32]} 28. Qxa1 {[%emt 0:00:01]} f5 {[%emt 0:20:50]} 29. Qa7 {[%emt 0:04:33]} (29. Nxf5 $11 Bxf5 30. exf5) 29... Qxa7 $17 {[%emt 0:00:00]} 30. Bxa7 {[%emt 0:00:02]} fxe4 {[%emt 0:00:00]} ({Black should play} 30... Nf4 $17 {And now ...fxe4 would win.} 31. exf5 Be7 (31... Nxd5 32. Ne2 $15)) 31. Bxe4 {[%emt 0:00:07]} (31. f3 $1 $15) 31... Nf4 {[%emt 0:00:00]} 32. Nc2 {[%emt 0:02:10]} Nf6 {[%emt 0:00:00][%cal Of6e4] Threatens to win with ...Nxe4!} 33. Ne3 {[%emt 0:00:01]} Be8 {[%emt 0:00:00] Black is more active.} 34. Bb8 {[%emt 0:02:10]} Bf7 {[%emt 0:00:00][%cal Rf7d5]} 35. Bf5 {[%emt 0:03:52]} N4xd5 {[%emt 0:00:00]} 36. Nxd5 {[%emt 0:01:26]} Bxd5 {[%emt 0:00:00]} ({Inferior is} 36... Nxd5 37. Ne4 $11) 37. Bg6 {[%emt 0:01:14]} Bf7 {[%emt 0:00:00]} 38. Bf5 {[%emt 0:03:58]} g6 {[%emt 0:00:00]} 39. Bc8 {[%emt 0:00:03]} Be8 {[%emt 0:00:00]} 40. Be6+ {[%emt 0:00:03]} Kg7 {[%emt 0:00:00]} 41. f3 {[%emt 0:00:17]} (41. Ne2 $142) 41... Bd7 $19 {[%emt 0:00:00]} 42. Bxd7 {[%emt 0:00:22]} Nxd7 {[%emt 0:00:00]} 43. Bc7 {[%emt 0:00:28]} (43. Ba7 {was called for.}) 43... Kf7 {[%emt 0:00:00]} 44. h4 $2 {[%emt 0:00:54] [#]} (44. Ne2) 44... d5 {[%emt 0:00:00] aiming for ...d4. Black is clearly winning.} 45. f4 {[%emt 0:02:11]} (45. Ne2 $142) 45... d4 {[%emt 0:00:00]} 46. Ne4 {[%emt 0:02:08]} Nf6 {[%emt 0:02:10] Weighted Error Value: White=0.40/Black=0.07 (flawless) .  Mistake:       	White=7     	Black=1      Inaccurate:     	White=4     	Black=1      OK:         	White=10    	Black=19     Best:        	White=1     	Black=2} 0-1